fUSD/lending_fUSD_20241123
["ID","MTS","AMOUNT","RATE_DAILY","PERIOD"]
[343063144,1732320651851,-500.0,0.00059999,120]
[343063145,1732320651860,-500.0,0.00059999,120]
[343063146,1732320651869,-500.0,0.00059999,120]
[343063147,1732320651879,-500.0,0.00059999,120]
[343063148,1732320651890,-505.47614839,0.00059999,120]
[343063149,1732320651900,-500.0,0.00059999,120]
[343063150,1732320651907,-296.2098637,0.00059999,120]
[343063151,1732320651914,-500.0,0.00059999,120]
[343063152,1732320651922,-613.66660664,0.00059999,120]
[343063153,1732320651929,-500.0,0.00059999,120]
[343063154,1732320651936,-500.0,0.00059999,120]
[343063155,1732320651943,-500.0,0.00059999,120]
[343063156,1732320651950,-500.0,0.00059999,120]
[343063157,1732320651959,-500.0,0.00059999,120]
[343063158,1732320651973,-504.47214588,0.00059999,120]
[343063159,1732320651984,-500.0,0.00059999,120]
[343063160,1732320651994,-195.60676594,0.00059999,120]
[343063161,1732320652005,-500.0,0.00059999,120]
[343063162,1732320652015,-500.0,0.00059999,120]
[343063163,1732320652026,-1000.0,0.00059999,120]
[343063164,1732320652036,-500.0,0.00059999,120]
[343063165,1732320652047,-500.0,0.00059999,120]
[343063166,1732320652057,-1000.0,0.00059999,120]
[343063167,1732320652068,-500.0,0.00059999,120]
[343063168,1732320652079,-500.0,0.00059999,120]
[343063169,1732320652089,-1000.0,0.00059999,120]
[343063170,1732320652100,-500.0,0.00059999,120]
[343063171,1732320652111,-500.0,0.00059999,120]
[343063172,1732320652122,-352.69613423,0.00059999,120]
[343063173,1732320652132,-500.0,0.00059999,120]
[343063174,1732320652146,-500.0,0.00059999,120]
[343063175,1732320652155,-500.0,0.00059999,120]
[343063176,1732320652165,-508.15839059,0.00059999,120]
[343063177,1732320652175,-500.0,0.00059999,120]
[343063178,1732320652185,-500.0,0.00059999,120]
[343063179,1732320652195,-500.0,0.00059999,120]
[343063180,1732320652206,-500.0,0.00059999,120]
[343063181,1732320652218,-272.52602308,0.00059999,120]
[343063182,1732320652228,-500.0,0.00059999,120]
[343063183,1732320652238,-500.0,0.00059999,120]
[343063184,1732320652249,-500.0,0.00059999,120]
[343063185,1732320652259,-501.60257978,0.00059999,120]
[343063186,1732320652269,-500.0,0.00059999,120]
[343063187,1732320652278,-500.0,0.00059999,120]
[343063188,1732320652288,-500.0,0.00059999,120]
[343063189,1732320652298,-533.63108363,0.00059999,120]
[343063190,1732320652307,-500.0,0.00059999,120]
[343063191,1732320652317,-500.0,0.00059999,120]
[343063192,1732320652326,-500.0,0.00059999,120]
[343063193,1732320652336,-500.0,0.00059999,120]
[343063194,1732320652346,-540.5737747,0.00059999,120]
[343063195,1732320652356,-500.0,0.00059999,120]
[343063196,1732320652367,-500.0,0.00059999,120]
[343063197,1732320652377,-500.0,0.00059999,120]
[343063198,1732320652386,-500.0,0.00059999,120]
[343063199,1732320652400,-153.36070862,0.00059999,120]
[343063200,1732320652411,-500.0,0.00059999,120]
[343063201,1732320652421,-500.0,0.00059999,120]
[343063202,1732320652430,-500.0,0.00059999,120]
[343063203,1732320652441,-500.0,0.00059999,7]
[343063204,1732320652454,-500.0,0.00059999,7]
[343063205,1732320652463,-500.0,0.00059999,120]
[343063206,1732320652473,-500.0,0.00059999,7]
[343063207,1732320652482,-500.0,0.00059999,120]
[343063208,1732320652492,-518.81408605,0.00059999,7]
[343063209,1732320652502,-500.0,0.00059999,120]
[343063210,1732320652512,-354.63402612,0.00059999,120]
[343063211,1732320652521,-638.1224643,0.00059999,120]
[343063212,1732320652531,-500.0,0.00059999,120]
[343063213,1732320652541,-500.0,0.00059999,120]
[343063214,1732320652551,-500.0,0.00059999,120]
[343063215,1732320652560,-280.4852952,0.00059999,120]
[343063216,1732320652570,-703.59877774,0.00059999,120]
[343063217,1732320652580,-500.0,0.00059999,120]
[343063218,1732320652589,-500.0,0.00059999,120]
[343063219,1732320652599,-500.0,0.00059999,120]
[343063220,1732320652609,-500.0,0.00059999,120]
[343063221,1732320652618,-500.0,0.00059999,120]
[343063222,1732320652628,-500.0,0.00059999,120]
[343063223,1732320652637,-500.0,0.00059999,120]
[343063224,1732320652652,-500.0,0.00059999,120]
[343063225,1732320652661,-518.93970099,0.00059999,120]
[343063226,1732320652670,-500.0,0.00059999,120]
[343063227,1732320652680,-500.0,0.00059999,120]
[343063228,1732320652689,-500.0,0.00059999,120]
[343063229,1732320652699,-500.0,0.00059999,120]
[343063230,1732320652708,-397.07316366,0.00059999,120]
[343063231,1732320652718,-543.80364792,0.00059999,120]
[343063232,1732320652727,-500.0,0.00059999,120]
[343063233,1732320652737,-500.0,0.00059999,120]
[343063234,1732320652748,-500.0,0.00059999,120]
[343063235,1732320652760,-500.0,0.00059999,120]
[343063236,1732320652772,-392.44569269,0.00059999,120]
[343063237,1732320652840,-500.0,0.00059999,120]
[343063238,1732320652850,-574.62801698,0.00059999,120]
[343063239,1732320652859,-500.0,0.00059999,120]
[343063240,1732320652869,-500.0,0.00059999,120]
[343063241,1732320652879,-500.0,0.00059999,120]
[343063242,1732320652892,-500.0,0.00059999,120]
[343063243,1732320652903,-500.0,0.00059999,120]
[343063244,1732320652913,-571.88,0.00059999,120]
[343063245,1732320652925,-500.0,0.00059999,120]
[343063246,1732320652935,-502.63210528,0.00059999,120]
[343063247,1732320652946,-500.0,0.00059999,120]
[343063248,1732320652957,-500.0,0.00059999,120]
[343063249,1732320652967,-500.0,0.00059999,120]
[343063250,1732320652978,-500.0,0.00059999,120]
[343063251,1732320652987,-500.0,0.00059999,120]
[343063252,1732320652997,-500.0,0.00059999,120]
[343063253,1732320653007,-500.0,0.00059999,120]
[343063254,1732320653017,-500.0,0.00059999,120]
[343063255,1732320653028,-500.0,0.00059999,120]
[343063256,1732320653037,-500.0,0.00059999,120]
[343063257,1732320653047,-1019.38,0.00059999,120]
[343063258,1732320653056,-1019.38,0.00059999,120]
[343063259,1732320653066,-1019.38,0.00059999,120]
[343063260,1732320653075,-500.0,0.00059999,120]
[343063261,1732320653085,-1019.38,0.00059999,120]
[343063262,1732320653095,-500.0,0.00059999,120]
[343063263,1732320653105,-734.82,0.00059999,120]
[343063264,1732320653114,-1019.38,0.00059999,120]
[343063265,1732320653123,-734.82,0.00059999,120]
[343063266,1732320653133,-500.0,0.00059999,120]
[343063267,1732320653145,-1019.38,0.00059999,120]
[343063268,1732320653155,-734.82,0.00059999,120]
[343063269,1732320653164,-1019.38,0.00059999,120]
[343063270,1732320653174,-734.82,0.00059999,120]
[343063271,1732320653184,-1019.38,0.00059999,120]
[343063272,1732320653193,-500.0,0.00059999,120]
[343063273,1732320653203,-734.82,0.00059999,120]
[343063274,1732320653213,-1019.38,0.00059999,120]
[343063275,1732320653222,-734.82,0.00059999,120]
[343063276,1732320653231,-1019.38,0.00059999,120]
[343063277,1732320653241,-1019.38,0.00059999,120]
[343063278,1732320653250,-500.0,0.00059999,120]
[343063279,1732320653260,-1019.38,0.00059999,120]
[343063280,1732320653270,-500.0,0.00059999,120]
[343063281,1732320653281,-500.0,0.00059999,120]
[343063282,1732320653291,-500.0,0.00059999,120]
[343063283,1732320653301,-500.0,0.00059999,120]
[343063284,1732320653312,-500.0,0.00059999,120]
[343063285,1732320653322,-734.82,0.00059999,120]
[343063286,1732320653332,-505.57440996,0.00059999,120]
[343063287,1732320653343,-500.0,0.00059999,120]
[343063288,1732320653352,-734.82,0.00059999,120]
[343063289,1732320653362,-734.82,0.00059999,120]
[343063290,1732320653372,-1019.38,0.00059999,120]
[343063291,1732320653382,-734.82,0.00059999,120]
[343063292,1732320653393,-734.82,0.00059999,120]
[343063293,1732320653402,-500.0,0.00059999,120]
[343063294,1732320653412,-1019.38,0.00059999,120]
[343063295,1732320653421,-734.82,0.00059999,120]
[343063296,1732320653430,-500.0,0.00059999,120]
[343063297,1732320653440,-1019.38,0.00059999,120]
[343063298,1732320653453,-500.0,0.00059999,120]
[343063299,1732320653463,-734.82,0.00059999,120]
[343063300,1732320653473,-332.22737121,0.00059999,120]
[343063301,1732320653484,-1019.38,0.00059999,120]
[343063302,1732320653494,-500.0,0.00059999,120]
[343063303,1732320653504,-734.82,0.00059999,120]
[343063304,1732320653514,-1019.38,0.00059999,120]
[343063305,1732320653524,-500.0,0.00059999,120]
[343063306,1732320653533,-500.0,0.00059999,120]
[343063307,1732320653543,-500.0,0.00059999,120]
[343063308,1732320653553,-734.82,0.00059999,120]
[343063309,1732320653563,-431.66139737,0.00059999,120]
[343063310,1732320653572,-500.0,0.00059999,120]
[343063311,1732320653582,-734.82,0.00059999,120]
[343063312,1732320653592,-500.0,0.00059999,120]
[343063313,1732320653602,-500.0,0.00059999,120]
[343063314,1732320653612,-734.82,0.00059999,120]
[343063315,1732320653622,-1019.38,0.00059999,120]
[343063316,1732320653632,-500.0,0.00059999,120]
[343063317,1732320653644,-734.82,0.00059999,120]
[343063318,1732320653654,-573.4487777,0.00059999,120]
[343063319,1732320653664,-280.65746393,0.00059999,120]
[343063320,1732320653673,-1019.38,0.00059999,120]
[343063321,1732320653683,-734.82,0.00059999,120]
[343063322,1732320653692,-1019.38,0.00059999,120]
[343063323,1732320653702,-734.82,0.00059999,120]
[343063324,1732320653712,-1019.38,0.00059999,120]
[343063325,1732320653721,-734.82,0.00059999,120]
[343063326,1732320653730,-500.0,0.00059999,120]
[343063327,1732320653740,-1019.38,0.00059999,120]
[343063328,1732320653750,-734.82,0.00059999,120]
[343063329,1732320653760,-500.0,0.00059999,120]
[343063330,1732320653770,-1019.38,0.00059999,120]
[343063331,1732320653780,-734.82,0.00059999,120]
[343063332,1732320653790,-500.0,0.00059999,120]
[343063333,1732320653799,-1019.57276652,0.00059999,120]
[343063334,1732320653808,-734.97,0.00059999,120]
[343063335,1732320653818,-500.0,0.00059999,120]
[343063336,1732320653827,-500.0,0.00059999,120]
[343063337,1732320653836,-500.0,0.00059999,120]
[343063338,1732320653845,-500.0,0.00059999,60]
[343063339,1732320653856,-500.0,0.00059999,60]
[343063340,1732320653865,-210.07690107,0.00059999,60]
[343063341,1732320653875,-500.0,0.00059999,120]
[343063342,1732320653939,-500.0,0.00059999,120]
[343063343,1732320653949,-500.0,0.00059999,120]
[343063344,1732320653959,-500.0,0.00059999,120]
[343063345,1732320653969,-500.0,0.00059999,120]
[343063346,1732320653979,-500.0,0.00059999,120]
[343063347,1732320653990,-500.0,0.00059999,120]
[343063348,1732320653999,-500.0,0.00059999,120]
[343063349,1732320654009,-500.0,0.00059999,120]
[343063350,1732320654018,-200.40532361,0.00059999,120]
[343063351,1732320654028,-210.47687465,0.00059999,120]
[343063352,1732320654038,-500.0,0.00059999,120]
[343063353,1732320654047,-500.0,0.00059999,120]
[343063354,1732320654058,-500.0,0.00059999,120]
[343063355,1732320654068,-500.0,0.00059999,120]
[343063356,1732320654077,-395.30912594,0.00059999,120]
[343063357,1732320654087,-500.0,0.00059999,120]
[343063358,1732320654097,-500.0,0.00059999,120]
[343063359,1732320654106,-500.0,0.00059999,120]
[343063360,1732320654116,-500.0,0.00059999,120]
[343063361,1732320654126,-500.0,0.00059999,120]
[343063362,1732320654136,-440.68607837,0.00059999,120]
[343063363,1732320654149,-500.0,0.00059999,120]
[343063364,1732320654159,-500.0,0.00059999,120]
[343063365,1732320654169,-262.44078633,0.00059999,120]
[343063366,1732320654179,-458.80918232,0.00059999,120]
[343063367,1732320654189,-500.0,0.00059999,120]
[343063368,1732320654198,-506.77189386,0.00059999,120]
[343063369,1732320654208,-500.0,0.00059999,120]
[343063370,1732320654217,-500.0,0.00059999,120]
[343063371,1732320654227,-500.0,0.00059999,120]
[343063372,1732320654237,-500.0,0.00059999,120]
[343063373,1732320654246,-500.0,0.00059999,120]
[343063374,1732320654256,-500.0,0.00059999,120]
[343063375,1732320654265,-500.0,0.00059999,120]
[343063376,1732320654274,-500.0,0.00059999,120]
[343063377,1732320654284,-500.0,0.00059999,120]
[343063378,1732320654293,-500.0,0.00059999,120]
[343063379,1732320654303,-500.0,0.00059999,120]
[343063380,1732320654313,-565.22,0.00059999,120]
[343063381,1732320654322,-500.0,0.00059999,120]
[343063382,1732320654332,-500.0,0.00059999,120]
[343063383,1732320654341,-500.0,0.00059999,120]
[343063384,1732320654350,-500.0,0.00059999,120]
[343063385,1732320654360,-500.0,0.00059999,120]
[343063386,1732320654369,-500.0,0.00059999,120]
[343063387,1732320654379,-500.0,0.00059999,120]
[343063388,1732320654388,-500.0,0.00059999,120]
[343063389,1732320654401,-618.37554053,0.00059999,120]
[343063390,1732320654411,-500.0,0.00059999,120]
[343063391,1732320654423,-227.86507728,0.00059999,120]
[343063392,1732320654432,-500.27713112,0.00059999,120]
[343063393,1732320654441,-500.0,0.00059999,120]
[343063394,1732320654451,-500.0,0.00059999,120]
[343063395,1732320654463,-444.34203622,0.00059999,120]
[343063396,1732320654472,-500.0,0.00059999,120]
[343063397,1732320654481,-500.0,0.00059999,120]
[343063398,1732320654491,-500.0,0.00059999,120]
[343063399,1732320654500,-500.0,0.00059999,120]
[343063400,1732320654510,-500.0,0.00059999,120]
[343063401,1732320654519,-500.0,0.00059999,120]
[343063402,1732320654529,-500.0,0.00059999,120]
[343063403,1732320654539,-500.0,0.00059999,120]
[343063404,1732320654549,-187.19406056,0.00059999,120]
[343063405,1732320654559,-1258.23,0.00059999,120]
[343063406,1732320654568,-1258.23,0.00059999,120]
[343063407,1732320654578,-500.0,0.00059999,120]
[343063408,1732320654587,-1258.23,0.00059999,120]
[343063409,1732320654597,-500.0,0.00059999,120]
[343063410,1732320654607,-1258.23,0.00059999,120]
[343063411,1732320654616,-500.0,0.00059999,120]
[343063412,1732320654625,-1258.23,0.00059999,120]
[343063413,1732320654634,-1258.23,0.00059999,120]
[343063414,1732320654645,-550.81492272,0.00059999,120]
[343063415,1732320654655,-1258.23,0.00059999,120]
[343063416,1732320654664,-500.0,0.00059999,120]
[343063417,1732320654674,-1258.23,0.00059999,120]
[343063418,1732320654683,-1258.23,0.00059999,120]
[343063419,1732320654692,-1258.23,0.00059999,120]
[343063420,1732320654701,-1258.23,0.00059999,120]
[343063421,1732320654710,-1258.23,0.00059999,120]
[343063422,1732320654719,-500.0,0.00059999,120]
[343063423,1732320654728,-501.10846708,0.00059999,120]
[343063424,1732320654739,-1258.23,0.00059999,120]
[343063425,1732320654748,-1258.23,0.00059999,120]
[343063426,1732320654758,-1258.23,0.00059999,120]
[343063427,1732320654768,-1258.23,0.00059999,120]
[343063428,1732320654777,-1258.23,0.00059999,120]
[343063429,1732320654787,-1258.23,0.00059999,120]
[343063430,1732320654797,-500.0,0.00059999,120]
[343063431,1732320654806,-406.54361447,0.00059999,120]
[343063432,1732320654815,-1258.23,0.00059999,120]
[343063433,1732320654824,-1258.23,0.00059999,120]
[343063434,1732320654833,-1258.23,0.00059999,120]
[343063435,1732320654842,-1258.23,0.00059999,120]
[343063436,1732320654851,-1258.23,0.00059999,120]
[343063437,1732320654860,-1258.41100844,0.00059999,120]
[343063438,1732320654870,-500.0,0.00059999,120]
[343063439,1732320654937,-500.0,0.00059999,120]
[343063440,1732320654948,-500.0,0.00059999,120]
[343063441,1732320654959,-500.0,0.00059999,120]
[343063442,1732320654968,-500.0,0.00059999,120]
[343063443,1732320654978,-500.0,0.00059999,120]
[343063444,1732320654987,-500.0,0.00059999,120]
[343063445,1732320654997,-500.0,0.00059999,120]
[343063446,1732320655007,-189.21,0.00059999,120]
[343063447,1732320655018,-200.0,0.00059999,15]
[343063448,1732320655029,-500.0,0.00059999,120]
[343063449,1732320655039,-500.0,0.00059999,120]
[343063450,1732320655050,-500.0,0.00059999,120]
[343063451,1732320655060,-500.0,0.00059999,120]
[343063452,1732320655069,-500.0,0.00059999,120]
[343063453,1732320655079,-341.86449024,0.00059999,120]
[343063454,1732320655089,-500.0,0.00059999,120]
[343063455,1732320655099,-500.0,0.00059999,120]
[343063456,1732320655108,-500.0,0.00059999,120]
[343063457,1732320655118,-500.0,0.00059999,120]
[343063458,1732320655127,-500.0,0.00059999,120]
[343063459,1732320655138,-500.0,0.00059999,120]
[343063460,1732320655150,-572.13838481,0.00059999,120]
[343063461,1732320655160,-500.0,0.00059999,120]
[343063462,1732320655169,-446.12,0.00059999,120]
[343063463,1732320655179,-500.0,0.00059999,120]
[343063464,1732320655188,-162.4306447,0.00059999,120]
[343063465,1732320655198,-500.0,0.00059999,120]
[343063466,1732320655207,-500.0,0.00059999,120]
[343063467,1732320655218,-500.0,0.00059999,120]
[343063468,1732320655227,-500.0,0.00059999,120]
[343063469,1732320655236,-500.0,0.00059999,120]
[343063470,1732320655246,-463.46995066,0.00059999,120]
[343063471,1732320655255,-574.04,0.00059999,120]
[343063472,1732320655265,-500.0,0.00059999,120]
[343063473,1732320655275,-500.0,0.00059999,120]
[343063474,1732320655284,-500.0,0.00059999,120]
[343063475,1732320655294,-500.0,0.00059999,120]
[343063476,1732320655304,-505.94693154,0.00059999,120]
[343063477,1732320655313,-211.53850695,0.00059999,120]
[343063478,1732320655323,-457.5693323,0.00059999,120]
[343063479,1732320655333,-500.0,0.00059999,120]
[343063480,1732320655342,-208.04595717,0.00059999,120]
[343063481,1732320655352,-601.25362383,0.00059999,120]
[343063482,1732320655361,-500.0,0.00059999,120]
[343063483,1732320655376,-196.82507794,0.00059999,120]
[343063484,1732320655393,-500.0,0.00059999,120]
[343063485,1732320655410,-500.0,0.00059999,120]
[343063486,1732320655429,-298.99630467,0.00059999,120]
[343063487,1732320655444,-500.0,0.00059999,120]
[343063488,1732320655461,-431.03,0.00059999,120]
[343063489,1732320655479,-501.72728569,0.00059999,120]
[343063490,1732320655496,-500.0,0.00059999,120]
[343063491,1732320655514,-434.73,0.00059999,120]
[343063492,1732320655531,-500.0,0.00059999,120]
[343063493,1732320655549,-500.0,0.00059999,120]
[343063494,1732320655567,-500.0,0.00059999,120]
[343063495,1732320655580,-500.0,0.00059999,120]
[343063496,1732320655599,-500.0,0.00059999,120]
[343063497,1732320655611,-500.0,0.00059999,120]
[343063498,1732320655629,-500.0,0.00059999,120]
[343063499,1732320655642,-500.0,0.00059999,120]
[343063500,1732320655657,-500.0,0.00059999,120]
[343063501,1732320655672,-500.0,0.00059999,120]
[343063502,1732320655687,-500.0,0.00059999,120]
[343063503,1732320655701,-409.06181252,0.00059999,120]
[343063504,1732320655717,-500.0,0.00059999,120]
[343063505,1732320655730,-500.0,0.00059999,120]
[343063506,1732320655745,-2527.0,0.0006,120]
[343063507,1732320655759,-500.0,0.0006,120]
[343063508,1732320655772,-150.0,0.0006,120]
[343063509,1732320655787,-150.0,0.0006,120]
[343063510,1732320655801,-150.0,0.0006,120]
[343063511,1732320655815,-2058.1602798,0.0006,120]
[343063512,1732320655831,-32090.1411986,0.00060028,2]
[343063513,1732320655845,-700.0,0.00060069,120]
[343063514,1732320655859,-500.0,0.00060273,120]
[343063515,1732320655875,-500.0,0.00060273,120]
[343063516,1732320655889,-500.0,0.00060273,120]
[343063517,1732320655905,-500.0,0.00060273,120]
[343063518,1732320655921,-500.0,0.00060274,120]
[343063519,1732320655935,-678.24,0.00060277,120]
[343063520,1732320655951,-379.26984457,0.00060305,2]
[343063521,1732320655966,-3275.38,0.00060469,2]
[343063522,1732320655980,-1000.0,0.00060521,7]
[343063523,1732320655996,-1000.0,0.00060521,12]
[343063524,1732320656010,-730.44480086,0.00060521,15]
[343063525,1732320656024,-1000.0,0.00060521,2]
[343063526,1732320656039,-500.0,0.00060548,120]
[343063527,1732320656132,-200.0,0.00060599,15]
[343063528,1732320656147,-500.0,0.00060822,120]
[343063529,1732320656157,-1177.54,0.0006094,2]
[343063530,1732320656167,-500.0,0.00061096,120]
[343063531,1732320656176,-2400.31,0.00061161,2]
[343063532,1732320656186,-150.68,0.00061195,120]
[343063533,1732320656195,-168.51886723,0.00061205,15]
[343063534,1732320656205,-330.68,0.0006128,2]
[343063535,1732320656214,-500.0,0.0006137,120]
[343063536,1732320656223,-4495.19,0.00061516,2]
[343063537,1732320656232,-1500.0,0.00061522,7]
[343063538,1732320656242,-983.90988849,0.00061522,12]
[343063539,1732320656251,-6010.02,0.00061605,30]
[343063540,1732320656261,-500.0,0.00061644,120]
[343063541,1732320656270,-500.0,0.00061918,120]
[343063542,1732320656279,-164.55,0.00062108,2]
[343063543,1732320656288,-500.0,0.00062192,120]
[343063544,1732320656298,-2250.0,0.000622,90]
[343063545,1732320656308,-500.0,0.00062466,120]
[343063546,1732320656317,-500.0,0.0006274,120]
[343063547,1732320656327,-194.24,0.00062765,2]
[343063548,1732320656337,-2000.0,0.0006282,7]
[343063549,1732320656346,-505.10106165,0.0006282,2]
[343063550,1732320656356,-150.0,0.0006293,2]
[343063551,1732320656366,-6500.0,0.00063,120]
[343063552,1732320656376,-642.0,0.00063014,120]
[343063553,1732320656385,-700.0,0.00063027,120]
[343063554,1732320656396,-163.72,0.00063059,2]
[343063555,1732320656406,-236.99,0.00063162,60]
[343063556,1732320656415,-150.0,0.00063162,60]
[343063557,1732320656424,-362.34,0.00063162,60]
[343063558,1732320656433,-304.27,0.00063162,60]
[343063559,1732320656442,-150.0,0.00063162,60]
[343063560,1732320656456,-217.02,0.00063162,60]
[343063561,1732320656465,-308.49,0.00063162,60]
[343063562,1732320656474,-150.0,0.00063162,60]
[343063563,1732320656483,-433.48,0.00063162,60]
[343063564,1732320656493,-504.7,0.00063162,60]
[343063565,1732320656503,-150.0,0.00063162,60]
[343063566,1732320656512,-150.0,0.00063162,60]
[343063567,1732320656521,-150.0,0.00063162,60]
[343063568,1732320656531,-150.0,0.00063162,60]
[343063569,1732320656541,-150.0,0.00063162,60]
[343063570,1732320656551,-300.0,0.00063162,60]
[343063571,1732320656562,-1177.54,0.00063204,2]
[343063572,1732320656571,-330.68,0.00063391,2]
[343063573,1732320656580,-150.68,0.00063411,120]
[343063574,1732320656590,-170.41,0.00063527,2]
[343063575,1732320656599,-700.0,0.00063747,120]
[343063576,1732320656609,-157.53,0.00063932,120]
[343063577,1732320656619,-5000.0,0.00064,120]
[343063578,1732320656628,-1000.0,0.00064058,120]
[343063579,1732320656638,-593.05,0.00064141,120]
[343063580,1732320656651,-700.0,0.00064252,120]
[343063581,1732320656661,-2500.0,0.00064356,7]
[343063582,1732320656671,-5000.0,0.000645,120]
[343063583,1732320656681,-200.0,0.00064745,2]
[343063584,1732320656690,-194.24,0.00064985,2]
[343063585,1732320656699,-5000.0,0.00065,120]
[343063586,1732320656708,-162.43,0.00065068,120]
[343063587,1732320656718,-1932.77,0.00065147,2]
[343063588,1732320656727,-1932.77,0.00065164,2]
[343063589,1732320656736,-1932.77,0.00065181,2]
[343063590,1732320656745,-1932.77,0.00065198,2]
[343063591,1732320656755,-1932.77,0.00065215,2]
[343063592,1732320656764,-1932.77,0.00065233,2]
[343063593,1732320656773,-1932.77,0.0006525,2]
[343063594,1732320656783,-1932.77,0.00065267,2]
[343063595,1732320656792,-1932.77,0.00065284,2]
[343063596,1732320656801,-1932.77,0.00065301,2]
[343063597,1732320656811,-1932.77,0.00065318,2]
[343063598,1732320656820,-1932.77,0.00065336,2]
[343063599,1732320656829,-1899.48443116,0.0006534,2]
[343063600,1732320656839,-1932.77,0.00065353,2]
[343063601,1732320656848,-1932.77,0.0006537,2]
[343063602,1732320656858,-1932.77,0.00065387,2]
[343063603,1732320656867,-1932.77,0.00065404,2]
[343063604,1732320656877,-1932.77,0.00065421,2]
[343063605,1732320656887,-1932.77,0.00065438,2]
[343063606,1732320656898,-1932.77,0.00065456,2]
[343063607,1732320656908,-1177.54,0.00065468,2]
[343063608,1732320656917,-1932.77,0.00065473,2]
[343063609,1732320656927,-500.0,0.00065479,120]
[343063610,1732320656937,-500.0,0.00065479,120]
[343063611,1732320656947,-500.0,0.00065479,120]
[343063612,1732320656956,-500.0,0.00065479,120]
[343063613,1732320656966,-500.0,0.00065479,120]
[343063614,1732320656975,-330.68,0.00065502,2]
[343063615,1732320656984,-4824.0,0.000656,50]
[343063616,1732320656994,-150.68,0.00065627,120]
[343063617,1732320657003,-150.0,0.00065714,30]
[343063618,1732320657013,-150.0,0.00065818,60]
[343063619,1732320657022,-150.0,0.00065889,60]
[343063620,1732320657031,-168.28916001,0.000659,120]
[343063621,1732320657040,-29127.9743188,0.00065955,4]
[343063622,1732320657050,-26165.8074389,0.00065955,4]
[343063623,1732320657059,-23203.640559,0.00065955,4]
[343063624,1732320657069,-20241.4736791,0.00065955,4]
[343063625,1732320657079,-17279.3067992,0.00065955,4]
[343063626,1732320657088,-500.0,0.00065973,15]
[343063627,1732320657098,-74431950.64866461,0.00066,30]
[343063628,1732320657387,-4262.8921043,0.00066,30]
[343063629,1732320657399,-55561.00366948,0.00066,30]
[343063630,1732320657418,-500.0,0.00059999,120]
[343063631,1732320657427,-4533.84873906,0.00066,30]
[343063632,1732320657438,-7523.09595,0.00066,30]
[343063633,1732320657450,-2385.47819203,0.00066,30]
[343063634,1732320657464,-1592.42457867,0.00066,30]
[343063635,1732320657475,-323.79921957,0.00066,30]
[343063636,1732320657486,-8940.77294004,0.00066,30]
[343063637,1732320657497,-2895.42788783,0.00066,30]
[343063638,1732320657509,-296.124,0.00066,30]
[343063639,1732320674177,-500.0,0.00059999,120]
[343063640,1732320674187,-500.0,0.00059999,120]
[343063641,1732320674196,-645.57,0.00059999,120]
[343063642,1732320674206,-500.0,0.00059999,120]
[343063643,1732320674216,-3341.27375164,0.00066,30]